Cogmind - Beta 13 *** ADVENTURER MODE // 2024.04.04 @ 13:32:47 Player: Vetulus Result: Destroyed by AS-VCV(R) with Subdweller Machine Gun Performance ------------- Evolutions (0) 0 Regions Visited (3) 600 Robots Destroyed (29) 145 Value Destroyed (690) 690 Prototype IDs (2) 40 Alien Tech Used (0) 0 Bonus (0) 0 TOTAL SCORE: 1475 Bonus ------- None Cogmind --------- Core Integrity 0/250 Matter 300/300 Energy 156/160 System Corruption 0% Temperature Cool (2) Movement Treading (260) Ox1 Location -10/Subcaves Parts ------- > --- POWER (1) -------- Light Nuclear Core > --- PROPULSION (2) --- Spiked Treads Spiked Treads > --- UTILITY (2) ------ High-capacity Storage Unit Seismic Detector > --- WEAPON (2) ------- Makeshift Laser Subdweller Machine Gun > --- INVENTORY (20) --- Ion Engine Ion Engine Ion Engine Light Treads Improved Heat Sink Medium Storage Unit Medium Storage Unit High-capacity Matter Pod (200) Propulsion Shielding Light Armor Plating Scrap Shield Subdweller Laser Subdweller Machine Gun Battle Cannon Flamer Makeshift Spear Scrap Shield Fragment (47) Peak State ------------ > --- POWER ------------ Light Nuclear Core > --- PROPULSION ------- Spiked Treads Spiked Treads > --- UTILITY ---------- High-capacity Storage Unit Seismic Detector > --- WEAPON ----------- Makeshift Laser Subdweller Machine Gun > --- INVENTORY -------- Ion Engine Ion Engine Ion Engine Light Treads Improved Heat Sink Medium Storage Unit Medium Storage Unit High-capacity Matter Pod Propulsion Shielding Light Armor Plating Scrap Shield Subdweller Laser Subdweller Machine Gun Battle Cannon Flamer Makeshift Spear Scrap Shield Fragment [Rating: 18] Favorites ----------- Power Light Nuclear Core Engine Ion Engine Power Core Light Nuclear Core Propulsion Light Treads Treads Light Treads Utility High-capacity Storage Unit Device Terrain Scanner Storage High-capacity Storage Unit Weapon Assault Rifle Energy Gun Makeshift Laser Ballistic Gun Assault Rifle Build | -11 -10 -10 -10 ------- Run | Yrd Mat Min Sub Slots Evolved . | . . . . Power . | . . . . Propulsion . | . . . . Utility . | . . . . Weapon . | . . . . Parts Attached 25 | 6 8 4 7 Power 5 | 1 1 3 . Engine 3 | 1 1 1 . Core 2 | . . 2 . Reactor . | . . . . Propulsion 7 | 2 2 . 3 Treads 7 | 2 2 . 3 Leg . | . . . . Wheel . | . . . . Hover . | . . . . Flight . | . . . . Utility 6 | 1 3 1 1 Device 3 | . 1 1 1 Storage 3 | 1 2 . . Processor . | . . . . Hackware . | . . . . Protection . | . . . . Artifact . | . . . . Weapon 7 | 2 2 . 3 Energy Gun 1 | . . . 1 Energy Cannon . | . . . . Ballistic Gun 6 | 2 2 . 2 Ballistic Cannon . | . . . . Launcher . | . . . . Special Weapon . | . . . . Impact Weapon . | . . . . Slashing Weapon . | . . . . Piercing Weapon . | . . . . Special Melee Weapon . | . . . . Unidentified Prototypes . | . . . . Parts Lost 4 | . . 1 3 Power 1 | . . 1 . Propulsion 1 | . . . 1 Utility 1 | . . . 1 Weapon 1 | . . . 1 Highest Loss Streak 2 | . . 1 2 To Critical Strikes . | . . . . Average Slot Usage (%) 96 | . 94 98 97 Engine 6 | . 14 . . Core 7 | . . 11 14 Treads 27 | . 27 28 26 Device 10 | . 7 14 13 Storage 16 | . 19 14 14 Ballistic Gun 25 | . 24 28 25 Naked Turns . | . . . . Heaviest Build 54 | 13 50 49 54 Greatest Support 40 | 40 40 40 40 Greatest Overweight (x) 2 | . 1 1 2 Average Overweight (x) . | . . 1 1 Largest Inventory Capacity 20 | 8 20 20 20 Average Capacity 19 | 6 19 20 20 Most Carried 20 | 2 10 16 20 Average Carried 11 | 1 7 13 18 Final Capacity 20 | 8 20 20 20 Final Carried 18 | 2 9 16 18 Class Distribution -------------------- 100% | Mutant Dominant Class ---------------- Mutant | -10/Materials Mutant | -10/Mines Mutant | -10/Subcaves Resources | -11 -10 -10 -10 ----------- Run | Yrd Mat Min Sub Matter Collected 1166 | 248 377 232 309 Remotely . | . . . . Salvage Created 805 | . 221 452 132 Parts 48 | . 19 25 4 Haulers Intercepted . | . . . . Recyclers Shooed . | . . . . Parts Field Recycled . | . . . . Retrieved Matter . | . . . . Parts Self-Destructed 8 | . . . 8 Prevented . | . . . . Kills | -11 -10 -10 -10 ------- Run | Yrd Mat Min Sub Combat Hostiles Destroyed 26 | . 8 14 4 Guns 26 | . 8 14 4 Classes Destroyed 5 | . 4 . 1 Builder 1 | . 1 . . Watcher 2 | . 2 . . Swarmer 12 | . 6 6 . Grunt 11 | . 2 8 1 Subdweller 3 | . . . 3 Best Kill Streak 5 | . 5 3 1 Combat Bots Only 3 | . 3 3 1 Max Kills in Single Turn 1 | . 1 1 1 Gunslinging . | . . . . Exploded . | . . . . Melee . | . . . . Uniques/NPCs Destroyed . | . . . . Combat | -11 -10 -10 -10 -------- Run | Yrd Mat Min Sub Hostile Shots Fired 151 | . 62 57 32 Missed 37 | . 15 12 10 Damage Taken 1255 | . 346 356 553 Core 252 | . 40 57 155 Absorbed by Shields . | . . . . Ignored by Resistances 357 | . 108 113 136 Regen/Repaired (Parts) 301 | . 301 . . Core Remaining (%) 100 | 100 . . . Volleys Fired 88 | . 36 31 21 Largest 2 | . 2 2 2 Hottest 80 | . 40 40 80 Shots Fired 176 | . 72 62 42 Gun 176 | . 72 62 42 Cannon . | . . . . Launcher . | . . . . Special . | . . . . Kinetic 168 | . 72 62 34 Thermal 8 | . . . 8 Explosive . | . . . . Electromagnetic . | . . . . Robot Hit Streak 44 | . 17 19 44 Robot Miss Streak 2 | . 2 2 . Penetration Max . | . . . . Secondary Targets 8 | . 4 3 1 Max Gunslinging Chain 1 | . 1 1 1 Shots Hit Robots 144 | . 52 51 41 Core Hits 50 | . 17 25 8 Critical Kills 4 | . . 4 . Critical Parts Destroyed . | . . . . Critical Strikes 5 | . . 4 1 Destroy 5 | . . 4 1 Melee Attacks . | . . . . Impact . | . . . . Slashing . | . . . . Piercing . | . . . . Sneak Attacks . | . . . . Combat Hostiles . | . . . . Follow-up Attacks . | . . . . Damage Inflicted 1832 | . 586 537 709 Guns 1832 | . 586 537 709 Cannons . | . . . . Explosions . | . . . . Melee . | . . . . Ramming . | . . . . Kinetic 1696 | . 586 537 573 Thermal 136 | . . . 136 Explosive . | . . . . Electromagnetic . | . . . . Impact . | . . . . Slashing . | . . . . Piercing . | . . . . Highest Corruption . | . . . . Average Corruption . | . . . . Corruption Purged . | . . . . Corruption Blocked . | . . . . Overload Shots . | . . . . Overflow Damage . | . . . . Projectiles . | . . . . Explosions . | . . . . Melee . | . . . . Knockbacks . | . . . . Impact . | . . . . Kinetic . | . . . . Secondary . | . . . . Self-Inflicted Damage . | . . . . Shots . | . . . . Rammed . | . . . . Targets Rammed . | . . . . Kicked . | . . . . Crushed . | . . . . Highest Temperature 22 | . 22 20 . Average Temperature 7 | . 10 6 . Received Heat Transfer 417 | . 120 168 129 Siege Activations . | . . . . Robots Corrupted . | . . . . Combat Hostiles . | . . . . Parts Fried . | . . . . Impact Corruptions . | . . . . Robots Melted . | . . . . Combat Hostiles . | . . . . Parts Melted . | . . . . Heat Transferred 296 | . . . 296 Parts Sabotaged . | . . . . Parts Stolen . | . . . . Parts Stripped . | . . . . Power Chain Reactions . | . . . . Alert | -11 -10 -10 -10 ------- Run | Yrd Mat Min Sub Peak Influence 225 | . 167 225 . Initial . | . . . . Average 38 | . 34 45 . Maximum Alert Level 1 | . . 1 . Low Security (%) 97 | 100 100 94 . Level 1 2 | . . 5 . Level 2 . | . . . . Level 3 . | . . . . Level 4 . | . . . . Level 5 . | . . . . High Security . | . . . . Max Security . | . . . . Squads Dispatched . | . . . . Investigation . | . . . . Extermination . | . . . . Reinforcement . | . . . . Assault . | . . . . Garrison . | . . . . Intercept . | . . . . Searches Triggered . | . . . . Construction Impeded . | . . . . Haulers Reinforced . | . . . . Active Scanning Responses . | . . . . Cargo Convoy Interrupts . | . . . . Stealth | -11 -10 -10 -10 --------- Run | Yrd Mat Min Sub Distress Signals . | . . . . Communications Jammed . | . . . . Distress Signals . | . . . . Times Spotted 41 | . 14 15 12 Peak Tracking Total 8 | . 3 3 8 Tactical Retreats 1 | . . 1 . Traps | -11 -10 -10 -10 ------- Run | Yrd Mat Min Sub Traps Triggered 2 | . . . 2 Indirectly . | . . . . Trap Hack Attempts . | . . . . Triggered . | . . . . Disarmed . | . . . . Reprogrammed . | . . . . Reused . | . . . . Traps Extracted . | . . . . Installed . | . . . . Triggered . | . . . . Machines | -11 -10 -10 -10 ---------- Run | Yrd Mat Min Sub Machines Disabled . | . . . . Max in Single Turn . | . . . . Machines Repaired . | . . . . Machines Dismantled . | . . . . Machines Sabotaged . | . . . . Overloaded Fab Kills . | . . . . Hacking | -11 -10 -10 -10 --------- Run | Yrd Mat Min Sub Machines Accessed 11 | . 10 1 . Terminals 9 | . 8 1 . Fabricators . | . . . . Repair Stations 1 | . 1 . . Recycling Units 1 | . 1 . . Scanalyzers . | . . . . Garrison Access . | . . . . Total Hacks 37 | . 33 4 . Successful 20 | . 19 1 . Failed 17 | . 14 3 . Catastrophic 3 | . 2 1 . Database Lockouts . | . . . . Manual 23 | . 19 4 . Terminals 26 | . 22 4 . Fabricators . | . . . . Repair Stations 10 | . 10 . . Recycling Units 1 | . 1 . . Scanalyzers . | . . . . Garrison Access . | . . . . Terminal Hacks 9 | . 8 1 . Prototype ID Bank 1 | . 1 . . Level Access Points 1 | . 1 . . Branch Access Points 2 | . 1 1 . Terminal Index 1 | . 1 . . Recycling Unit Index 1 | . 1 . . Alert Level 1 | . 1 . . Locate Traps 1 | . 1 . . Hauler Manifests 1 | . 1 . . Fabricator Hacks . | . . . . Repair Station Hacks 10 | . 10 . . Scan Component 5 | . 5 . . Repair 5 | . 5 . . Recycling Unit Hacks 1 | . 1 . . Report Inventory 1 | . 1 . . Scanalyzer . | . . . . Garrison Access Hacks . | . . . . Unauthorized Hacks . | . . . . Terminals . | . . . . Fabricators . | . . . . Repair Stations . | . . . . Recycling Units . | . . . . Scanalyzers . | . . . . Garrison Access . | . . . . Data Cores Recovered . | . . . . Used . | . . . . Hacking Detections 10 | . 9 1 . Full Trace Events . | . . . . Feedback Events . | . . . . Feedback Blocked . | . . . . Robot Schematics Acquired . | . . . . Robots Built . | . . . . Authchips . | . . . . Time . | . . . . Total Robot Build Rating . | . . . . Part Schematics Acquired . | . . . . Parts Built . | . . . . Authchips . | . . . . Time . | . . . . Total Part Build Rating . | . . . . Parts Repaired 5 | . 5 . . Time 130 | . 130 . . Parts Recycled . | . . . . Recycled Matter . | . . . . Retrieved Matter . | . . . . Retrieved Components . | . . . . Parts Scanalyzed . | . . . . Part Schematics Acquired . | . . . . Parts Damaged . | . . . . Bothacking | -11 -10 -10 -10 ------------ Run | Yrd Mat Min Sub Used RIF Installer . | . . . . Robots Hacked . | . . . . Non-combat . | . . . . Combat . | . . . . Robot Hacks Applied . | . . . . Relay Couplers Released . | . . . . Fabnet Peak Effective % . | . . . . Robots Rewired . | . . . . Allies Hacked . | . . . . Hacks Repelled . | . . . . Allies | -11 -10 -10 -10 -------- Run | Yrd Mat Min Sub Total Allies . | . . . . Largest Group . | . . . . Highest-Rated Group . | . . . . Highest-Rated Ally . | . . . . Total Orders . | . . . . Ally Attacks . | . . . . Total Damage . | . . . . Kills . | . . . . Allies Corrupted . | . . . . Allies Melted . | . . . . Intel | -11 -10 -10 -10 ------- Run | Yrd Mat Min Sub Robot Analysis Total . | . . . . Derelict Logs Recovered 2 | . . 2 . Drone Launches . | . . . . Drone Recoveries . | . . . . Exploration | -11 -10 -10 -10 ------------- Run | Yrd Mat Min Sub Turns Passed 4692 | 68 2011 1768 845 Spaces Moved 1715 | 38 737 640 300 Core 5 | 5 . . . Treads 1710 | 33 737 640 300 Legs . | . . . . Wheels . | . . . . Hover . | . . . . Flight . | . . . . Fastest Speed 50 | 50 160 240 240 Average Speed 236 | 145 234 240 246 Slowest Speed 320 | 160 240 240 320 Overloaded Moves . | . . . . Propulsion Burnouts . | . . . . Robots Hopped . | . . . . Cave-ins Triggered . | . . . . Exploration Rate (%) 56 | 3 97 97 29 Regions Visited 3 Branch Regions 2 Pre-discovered Areas 3 | . . 2 1 Known Exits Taken 1 | . 1 . . Unknown Exits Taken 2 | 1 . 1 . Scrap Searched 7 | . . 2 5 Spaces Dug . | . . . . Terrain Destroyed . | . . . . Melee . | . . . . Projectile . | . . . . AOE . | . . . . Terrain Rammed . | . . . . Walls Destroyed . | . . . . Machines Disabled . | . . . . Actions | -11 -10 -10 -10 --------- Run | Yrd Mat Min Sub Total 2189 | 51 956 816 366 Wait 313 | . 161 134 18 Move 1712 | 37 736 639 300 Hop . | . . . . Pick Up 42 | 8 14 8 12 Fast Attach . | . . . . Attach 15 | 6 5 1 3 Detach . | . . . . Swap 10 | . 3 3 4 Drop 9 | . 1 . 8 Fire 88 | . 36 31 21 Melee . | . . . . Ram . | . . . . Kick . | . . . . Crush . | . . . . Escape Stasis . | . . . . Rewire . | . . . . Trap . | . . . . Miscellaneous . | . . . . Route ------- -11/Scrapyard -10/Materials (discovered 4 exits: *Mat x3 / *Min) -10/Mines (discovered 4 exits: *Mat x2 / [*Exi] / [*Sub]) -10/Subcaves (discovered 1 exit: [*Mat]) History --------- Turn | Location | Event 4 | -11/Scrapyard | Discovered new exit (range 15) 69 | -11/Scrapyard | Entered Materials 203 | -10/Materials | Identified exit to Materials 248 | -10/Materials | Identified exit to Mines 304 | -10/Materials | Build established: Mutant 1258 | -10/Materials | Repaired Assault Rifle 1286 | -10/Materials | Repaired Ion Engine 1313 | -10/Materials | Repaired Lgt. Treads 1341 | -10/Materials | Repaired Lgt. Treads 1368 | -10/Materials | Repaired Lgt. Assault Rifle 2080 | -10/Materials | Entered Mines 2136 | -10/Mines | Learned location of Storage (-7) 2432 | -10/Mines | Deemed a non-threat by the Exiles lab entrance 2432 | -10/Mines | Discovered new exit (range 5) 2848 | -10/Mines | Discovered exit to Materials (range 8) 2923 | -10/Mines | Discovered exit to Materials (range 10) 2993 | -10/Mines | Learned location of Mines (-9) 3011 | -10/Mines | Excavation squad dispatched 3011 | -10/Mines | A large section of the Mines collapsed 3708 | -10/Mines | A weapon hastily lodged in a ceiling crevice suddenly fell to the ground 3834 | -10/Mines | Discovered new exit (range 6) 3848 | -10/Mines | Entered Subcaves 3952 | -10/Subcaves | Shifting Twisted Machinery released Battle Rifle 3957 | -10/Subcaves | Shifting Twisted Machinery released Shrapnel Trap 4011 | -10/Subcaves | Ambushed by swarm of Subdwellers 4015 | -10/Subcaves | Ambushed by Subdwellers from Twisted Machinery 4031 | -10/Subcaves | Learned location of Zion (-6) 4031 | -10/Subcaves | Met a Zionite searching for "candidates" 4228 | -10/Subcaves | Discovered new exit (range 15) 4505 | -10/Subcaves | Core integrity fell below 50% 4513 | -10/Subcaves | Core integrity fell below 20% 4693 | -10/Subcaves | Destroyed by AS-VCV(R) with Subdweller Machine Gun Last Messages --------------- 04558_ Found Battle Cannon. 04558_ Found 28 Matter. 04559_ Acquired 11 matter. 04565_ Acquired Battle Cannon. 04566_ Searching scrap... 04566_ Found Spk. Treads. 04566_ Found 40 Matter. 04572_ Acquired Spk. Treads. 04577_ Dropped Spk. Treads. 04578_ Acquired Spk. Treads. 04586_ Dropped Med. Matter Pod. 04587_ Extracted 20 matter. 04590_ Searching scrap... 04590_ Found Flamer. 04590_ Found Sub. Laser. 04590_ Found 39 Matter. 04596_ Acquired Sub. Laser. 04675_ VS-QOC(R) destroyed. 04680_ Acquired 16 matter. 04685_ Acquired Scrap Shield Fragment. Map ----- +----------------------------------------------------+ | ?????????????????????????????????????????????????? | | ?????????????????????????????????????????????????? | | ?????????????????????????????????????????????????? | | ?????????????????????????????????????????????????? | | ?????????????????????????????????????????????????? | | ?????????????????????????????????????????????????? | | ?????????????????????????????????????????????????? | | ?????????????????????????????????????????????????? | | ?????????????????????????????????????????????????? | | ?????????????????????????????????????????????????? | | ???????#####?????????????????????????????????????? | | ??????##%#!##????????????????????????????????????? | | ??????#| %!%#????????????????????????????????????? | | #?????### "##????????????????????????????????????? | | ######?#[!###????????????????????????????????????? | | ####[# ####???????#?????????????????????????? | | =&[&" ##?????? ?????????????????????????? | | #?????? #???????###??????????????? | | ##"" ####?????? ?????? "???????????????? | | ####### ##?????????? ##???# "????????????????? | | #?????## #####??????? #### "?????????????????? | | #?????## ##?????? "??????????????????? | | #????## ####??? "???????????????????? | | #?????####### ##??#R "????????????????????? | | ##??????????## ##?# ##????????????????????? | | ##??????????## ###@""#????????????????????? | | ##???????????# % ###????????????????????? | | ?????????????# ##??????????????????????? | | ?????????????# ## ####???????????????????????? | | ?????????????## #####??????????????????????????? | | ??????????????#####??????????????????????????????? | | ?????????????????????????????????????????????????? | | ?????????????????????????????????????????????????? | | ?????????????????????????????????????????????????? | | ?????????????????????????????????????????????????? | | ?????????????????????????????????????????????????? | | ?????????????????????????????????????????????????? | | ?????????????????????????????????????????????????? | | ?????????????????????????????????????????????????? | | ?????????????????????????????????????????????????? | | ?????????????????????????????????????????????????? | | ?????????????????????????????????????????????????? | | ?????????????????????????????????????????????????? | | ?????????????????????????????????????????????????? | | ?????????????????????????????????????????????????? | | | | | | | | | | | +----------------------------------------------------+ Best States ------------- Heat Dissipation 25 Energy Generation 14 Energy Capacity 250 Matter Stores 400 Matter Capacity 400 Sight Range 16 Terrain Scan Range 14 Terrain Scan Density 10 Resistance: KI 20 Resistance: TH 20 Resistance: EX 20 Resistance: EM 20 Resistance: I 20 Resistance: S 20 Resistance: P 20 Evasion (%) 40 Recoil Reduction 2 Offensive Hacking 10 Item Schematics ----------------- None Robot Schematics ------------------ None Fabricated ------------ Nothing Alien Tech Used ----------------- None Achievements -------------- None Challenges ------------ None Game ------ Seed FissionMissileMultirail Manual? 0 Play Time 00:29:51 Cumulative 23.9 hours Start 2024.04.03 @ 22:19:46 End 2024.04.04 @ 13:32:47 Sessions 3 Manual Loads 0 Difficulty Adventurer Special Mode None Game No. 49 Rogue 23 Adventurer 26 Explorer 0 Win Type - Total 0 Types 0/0/0/0/0/0/0/0/0 Lore% 20 Gallery% 27 Achievement% 33 Wizard Run 0 Options --------- Layout 0 ASCII 0 Keyboard 0 Movement Numpad Keybinds 0 Fullscreen 1 Font 18/SmallcapsGlow Map View 76x50 Zoom Use 0% Tactical HUD 1 Map Filters NONE Filters NONE Steam 1 RUN: c1dae369-a9ef-4610-b8b5-6e34ad8f6a65